[Event "Turkish-ch Youth U13 2024"]
[Site "Belek Antalya"]
[Date "2024.01.25"]
[Round "7"]
[White "Nurdogan, Ilgin Destina"]
[Black "Aydogan, Arya"]
[Result "0-1"]
[ECO "C22"]
[WhiteElo "1434"]
[BlackElo "1613"]
[Annotator "NA RC COMBH"]
[PlyCount "124"]
[EventDate "2024.01.21"]
[EventType "swiss"]
[EventCountry "TUR"]
[SourceTitle "playchess.com"]
[Source "ChessBase"]
[SourceQuality "1"]
[TimeControl "5400+30"]

1. e4 {[%emt 0:01:00]} e5 {[%emt 0:01:00]} 2. d4 {[%emt 0:02:30]} exd4 {[%emt 0:00:30]} 3. Qxd4 {[%emt 0:00:30]} Nc6 {[%emt 0:00:30]} 4. Qd3 {[%emt 0:00:30]} Nf6 {[%emt 0:02:30]} 5. Nc3 {[%emt 0:00:00]} Bb4 {[%emt 0:03:30]} 6. Bd2 {[%emt 0:00:00]} O-O {[%emt 0:02:30]} 7. O-O-O {[%emt 0:00:30]} Re8 {[%emt 0:02:30]} 8. Nge2 {[%emt 0:01:30]} d6 {[%emt 0:04:30]} 9. Bg5 {[%emt 0:00:30]} h6 {[%emt 0:07:30]} 10. Bh4 {[%emt 0:00:00]} Be6 {[%emt 0:06:30]} 11. f4 {[%emt 0:01:00]} Bxc3 {[%emt 0:09:30]} 12. Nxc3 {[%emt 0:07:30]} a6 {[%emt 0:11:30]} 13. f5 {[%emt 0:25:30]} Ne5 {[%emt 0:05:30]} 14. Qh3 {[%emt 0:09:30]} Bc8 {[%emt 0:06:30]} 15. Nd5 {[%emt 0:03:30]} Ned7 {[%emt 0:01:30]} 16. Bd3 {[%emt 0:12:30]} c6 {[%emt 0:07:30]} 17. Nxf6+ {[%emt 0:11:30]} Nxf6 {[%emt 0:00:30]} 18. g4 {[%emt 0:01:30]} Qe7 {[%emt 0:06:41]} 19. Qg2 {[%emt 0:08:37]} Qe5 {[%emt 0:07:55]} 20. h3 {[%emt 0:02:22]} Nxe4 {[%emt 0:04:04]} 21. Qxe4 {[%emt 0:01:56]} Qxe4 {[%emt 0:00:38]} 22. Bxe4 {[%emt 0:00:17]} Rxe4 {[%emt 0:00:30]} 23. Rxd6 {[%emt 0:00:00]} Bxf5 {[%emt 0:00:00]} 24. Bd8 {[%emt 0:03:12]} Be6 {[%emt 0:01:18]} 25. b3 {[%emt 0:03:18]} Bd5 {[%emt 0:01:58]} 26. Rd1 {[%emt 0:01:11]} Be6 {[%emt 0:02:50]} 27. R1d3 {[%emt 0:01:06]} Kh7 {[%emt 0:01:08]} 28. Kd2 {[%emt 0:00:51]} Rc8 {[%emt 0:01:04]} 29. c4 {[%emt 0:01:47]} Rf4 {[%emt 0:01:14]} 30. Ke2 {[%emt 0:00:33]} b5 {[%emt 0:01:33]} 31. c5 {[%emt 0:00:30]} Re4+ {[%emt 0:00:30]} 32. Kf2 {[%emt 0:00:30]} Bd5 {[%emt 0:00:30]} 33. Rd2 {[%emt 0:00:30]} Rf4+ {[%emt 0:00:30]} 34. Kg1 {[%emt 0:00:30]} Rf3 {[%emt 0:00:30]} 35. Kh2 {[%emt 0:00:29]} Ra8 {[%emt 0:00:06]} 36. Rc2 {[%emt 0:01:02]} a5 {[%emt 0:00:26]} 37. Rb2 {[%emt 0:00:16]} Rc3 {[%emt 0:00:45]} 38. Rd7 {[%emt 0:00:30]} Rxc5 {[%emt 0:00:31]} 39. Bb6 {[%emt 0:00:35]} Rc1 {[%emt 0:00:11]} 40. Re7 {[%emt 0:00:15]} a4 {[%emt 0:00:31]} 41. b4 {[%emt 0:00:53]} Ra1 {[%emt 0:00:30]} 42. Ree2 {[%emt 0:00:30]} Bc4 {[%emt 0:00:33]} 43. Re7 {[%emt 0:00:19]} Rxa2 {[%emt 0:00:34]} 44. Rxa2 {[%emt 0:00:30]} Bxa2 {[%emt 0:00:00]} 45. Re3 {[%emt 0:00:11]} Bb3 {[%emt 0:00:00]} 46. Kg3 {[%emt 0:00:47]} Bd5 {[%emt 0:01:03]} 47. Kf2 {[%emt 0:00:24]} a3 {[%emt 0:00:12]} 48. Bd4 {[%emt 0:00:17]} a2 {[%emt 0:00:11]} 49. Ba1 {[%emt 0:00:12]} Ra4 {[%emt 0:00:11]} 50. Re2 {[%emt 0:00:30]} Rxb4 {[%emt 0:00:00]} 51. h4 {[%emt 0:00:33]} Rb1 {[%emt 0:00:08]} 52. Be5 {[%emt 0:00:00]} a1=Q {[%emt 0:00:19]} 53. Bxa1 {[%emt 0:00:15]} Rxa1 {[%emt 0:00:30]} 54. Ke3 {[%emt 0:00:30]} b4 {[%emt 0:00:00]} 55. Rb2 {[%emt 0:00:00]} b3 {[%emt 0:00:00]} 56. Kd2 {[%emt 0:00:00]} Ra2 {[%emt 0:00:00]} 57. Kc1 {[%emt 0:00:01]} Rxb2 {[%emt 0:00:22]} 58. g5 {[%emt 0:00:00]} Rc2+ {[%emt 0:00:00]} 59. Kb1 {[%emt 0:00:14]} Be4 {[%emt 0:00:11]} 60. g6+ {[%emt 0:00:00]} fxg6 {[%emt 0:00:00]} 61. h5 {[%emt 0:00:11]} gxh5 {[%emt 0:00:15]} 62. Ka1 {[%emt 0:00:30]} Ra2# {[%emt 0:00:00]} 0-1

[Event "Turkish-ch Youth U13 2024"]
[Site "Belek Antalya"]
[Date "2024.01.25"]
[Round "7"]
[White "Zeybek, Kayla Nil"]
[Black "Zengin, Ovgu"]
[Result "1/2-1/2"]
[ECO "A03"]
[WhiteElo "1345"]
[BlackElo "1470"]
[Annotator "NA RC COMBH"]
[PlyCount "88"]
[EventDate "2024.01.21"]
[EventType "swiss"]
[EventCountry "TUR"]
[SourceTitle "playchess.com"]
[Source "ChessBase"]
[SourceQuality "1"]
[TimeControl "5400+30"]

1. f4 {[%emt 0:01:00]} d5 {[%emt 0:01:00]} 2. Nf3 {[%emt 0:00:30]} Bg4 {[%emt 0:00:30]} 3. Ne5 {[%emt 0:03:30]} Bf5 {[%emt 0:01:30]} 4. d3 {[%emt 0:04:30]} Nd7 {[%emt 0:04:30]} 5. Nf3 {[%emt 0:02:30]} e6 {[%emt 0:04:30]} 6. g3 {[%emt 0:01:30]} Ngf6 {[%emt 0:00:30]} 7. Bg2 {[%emt 0:01:30]} Bc5 {[%emt 0:01:30]} 8. e3 {[%emt 0:00:00]} Bb6 {[%emt 0:07:30]} 9. O-O {[%emt 0:04:00]} Ng4 {[%emt 0:13:30]} 10. Qe1 {[%emt 0:02:30]} h5 {[%emt 0:15:30]} 11. b4 {[%emt 0:18:30]} Qf6 {[%emt 0:00:30]} 12. Nc3 {[%emt 0:11:30]} Nxe3 {[%emt 0:19:30]} 13. Bxe3 {[%emt 0:02:30]} Bxe3+ {[%emt 0:01:30]} 14. Qxe3 {[%emt 0:02:30]} Qxc3 {[%emt 0:04:30]} 15. Nd4 {[%emt 0:00:30]} O-O {[%emt 0:06:32]} 16. Rab1 {[%emt 0:03:30]} c5 {[%emt 0:04:26]} 17. bxc5 {[%emt 0:00:30]} Bg6 {[%emt 0:04:39]} 18. Nxe6 {[%emt 0:08:30]} fxe6 {[%emt 0:00:30]} 19. Qxe6+ {[%emt 0:00:00]} Bf7 {[%emt 0:00:24]} 20. Qxd7 {[%emt 0:00:00]} Qxc5+ {[%emt 0:00:10]} 21. Kh1 {[%emt 0:00:30]} b6 {[%emt 0:01:05]} 22. Rb5 {[%emt 0:02:30]} Rad8 {[%emt 0:01:17]} 23. Rxc5 {[%emt 0:01:30]} Rxd7 {[%emt 0:00:01]} 24. Rc6 {[%emt 0:01:30]} Re7 {[%emt 0:01:26]} 25. Bf3 {[%emt 0:01:30]} d4 {[%emt 0:00:22]} 26. a3 {[%emt 0:03:30]} Re3 {[%emt 0:00:10]} 27. Rd6 {[%emt 0:00:00]} Rc8 {[%emt 0:00:37]} 28. Be4 {[%emt 0:13:16]} Re2 {[%emt 0:01:52]} 29. Rc1 {[%emt 0:04:36]} Bb3 {[%emt 0:01:25]} 30. Bd5+ {[%emt 0:00:38]} Bxd5+ {[%emt 0:00:41]} 31. Rxd5 {[%emt 0:00:02]} Rcxc2 {[%emt 0:02:12]} 32. Rxc2 {[%emt 0:00:30]} Rxc2 {[%emt 0:00:30]} 33. Rxd4 {[%emt 0:00:30]} Rd2 {[%emt 0:00:00]} 34. Rd7 {[%emt 0:00:00]} a5 {[%emt 0:00:12]} 35. a4 {[%emt 0:01:31]} Ra2 {[%emt 0:00:53]} 36. Rd6 {[%emt 0:01:34]} Rb2 {[%emt 0:00:30]} 37. d4 {[%emt 0:00:30]} Kf7 {[%emt 0:00:32]} 38. d5 {[%emt 0:03:29]} Ke7 {[%emt 0:00:19]} 39. Rc6 {[%emt 0:00:49]} b5 {[%emt 0:00:42]} 40. Ra6 {[%emt 0:00:54]} bxa4 {[%emt 0:00:59]} 41. Rxa5 {[%emt 0:00:30]} Ra2 {[%emt 0:00:00]} 42. Ra6 {[%emt 0:00:00]} a3 {[%emt 0:00:25]} 43. h3 {[%emt 0:00:27]} g6 {[%emt 0:00:10]} 44. g4 {[%emt 0:00:44]} Rf2 {[%emt 0:00:30]} 1/2-1/2

[Event "Turkish-ch Youth U13 2024"]
[Site "Belek Antalya"]
[Date "2024.01.25"]
[Round "7"]
[White "Dogan, Ipek"]
[Black "Sahin, Cagla Yudum"]
[Result "1-0"]
[ECO "D35"]
[WhiteElo "1199"]
[BlackElo "1559"]
[Annotator "NA RC COMBH"]
[PlyCount "59"]
[EventDate "2024.01.21"]
[EventType "swiss"]
[EventCountry "TUR"]
[SourceTitle "playchess.com"]
[Source "ChessBase"]
[SourceQuality "1"]
[TimeControl "5400+30"]

1. d4 {[%emt 0:00:00]} Nf6 {[%emt 0:00:00]} 2. Nf3 {[%emt 0:00:30]} d5 {[%emt 0:00:30]} 3. c4 {[%emt 0:00:30]} e6 {[%emt 0:00:30]} 4. cxd5 {[%emt 0:00:30]} exd5 {[%emt 0:00:30]} 5. Nc3 {[%emt 0:00:30]} Nc6 {[%emt 0:04:30]} 6. Bg5 {[%emt 0:01:30]} Be7 {[%emt 0:01:30]} 7. e3 {[%emt 0:00:30]} O-O {[%emt 0:05:30]} 8. Be2 {[%emt 0:01:30]} Be6 {[%emt 0:07:30]} 9. O-O {[%emt 0:01:30]} h6 {[%emt 0:08:30]} 10. Bh4 {[%emt 0:00:30]} Ne4 {[%emt 0:03:30]} 11. Bxe7 {[%emt 0:01:30]} Nxe7 {[%emt 0:07:30]} 12. Ne5 {[%emt 0:05:30]} Nf5 {[%emt 0:07:30]} 13. Qc2 {[%emt 0:09:30]} Nfd6 {[%emt 0:04:30]} 14. Rab1 {[%emt 0:03:30]} Nxc3 {[%emt 0:05:30]} 15. bxc3 {[%emt 0:02:30]} Bf5 {[%emt 0:01:30]} 16. Bd3 {[%emt 0:00:30]} Bxd3 {[%emt 0:00:30]} 17. Qxd3 {[%emt 0:01:30]} c6 {[%emt 0:03:30]} 18. Rfc1 {[%emt 0:02:30]} Qa5 {[%emt 0:01:30]} 19. Rc2 {[%emt 0:02:30]} Rfe8 {[%emt 0:03:30]} 20. Qe2 {[%emt 0:03:30]} Nb5 {[%emt 0:04:30]} 21. Rb3 {[%emt 0:07:30]} Rad8 {[%emt 0:02:30]} 22. Qh5 {[%emt 0:00:30]} Re7 {[%emt 0:02:30]} 23. Qh4 {[%emt 0:02:30]} Qc7 {[%emt 0:01:30]} 24. h3 {[%emt 0:17:30]} Rde8 {[%emt 0:01:30]} 25. Nd3 {[%emt 0:05:30]} b6 {[%emt 0:02:50]} 26. Nf4 {[%emt 0:03:30]} Kh7 {[%emt 0:05:24]} 27. Nxd5 {[%emt 0:02:30]} cxd5 {[%emt 0:00:35]} 28. Rxb5 {[%emt 0:00:30]} Qc4 {[%emt 0:00:38]} 29. Rbb2 {[%emt 0:00:30]} Rc8 {[%emt 0:03:45]} 30. Qxe7 {[%emt 0:00:30]} 1-0

[Event "Turkish-ch Youth U13 2024"]
[Site "Belek Antalya"]
[Date "2024.01.26"]
[Round "8"]
[White "Dogan, Umut Anil"]
[Black "Celik, Ali Alper"]
[Result "1-0"]
[ECO "D10"]
[WhiteElo "1959"]
[BlackElo "2222"]
[Annotator "RC"]
[PlyCount "99"]
[EventDate "2024.01.21"]
[EventType "swiss"]
[EventCountry "TUR"]
[SourceTitle "playchess.com"]
[Source "ChessBase"]
[SourceQuality "1"]
[TimeControl "5400+30"]

1. d4 {[%emt 0:02:00]} d5 {[%emt 0:01:00]} 2. c4 {[%emt 0:00:30]} c6 {[%emt 0:00:00]} 3. Nc3 {[%emt 0:00:00]} dxc4 {[%emt 0:00:00]} 4. a4 {[%emt 0:00:00]} e5 {[%emt 0:00:30]} 5. dxe5 {[%emt 0:15:30]} Qxd1+ {[%emt 0:00:30]} 6. Nxd1 {[%emt 0:03:30]} Nd7 {[%emt 0:02:30]} 7. Bf4 {[%emt 0:05:30]} Nc5 {[%emt 0:03:30]} 8. Nc3 {[%emt 0:02:30]} Nb3 {[%emt 0:12:30]} 9. Rd1 {[%emt 0:00:30]} Bb4 {[%emt 0:00:30]} 10. Nf3 {[%emt 0:15:30]} h6 {[%emt 0:14:30]} 11. Nd2 {[%emt 0:12:30]} Bxc3 {[%emt 0:19:30]} 12. bxc3 {[%emt 0:00:00]} Nxd2 {[%emt 0:00:00]} 13. Rxd2 {[%emt 0:05:00]} Be6 {[%emt 0:07:00]} 14. e4 {[%emt 0:03:30]} Ne7 {[%emt 0:03:30]} 15. Be3 {[%emt 0:02:30]} g5 {[%emt 0:08:30]} 16. h4 {[%emt 0:05:30]} g4 {[%emt 0:05:58]} 17. h5 {[%emt 0:02:30]} b5 {[%emt 0:01:48]} 18. Be2 {[%emt 0:10:00]} a5 {[%emt 0:01:27]} 19. Bc5 {[%emt 0:00:30]} b4 {[%emt 0:00:03]} 20. O-O {[%emt 0:04:26]} bxc3 {[%emt 0:03:34]} 21. Rc2 {[%emt 0:00:30]} Rg8 {[%emt 0:00:30]} 22. Be3 {[%emt 0:00:30]} Rb8 {[%emt 0:00:30]} 23. Rxc3 {[%emt 0:00:30]} Rb3 {[%emt 0:01:11]} 24. Rfc1 {[%emt 0:02:50]} Rb4 {[%emt 0:00:08]} 25. Bxc4 {[%emt 0:01:44]} Rxa4 {[%emt 0:00:30]} 26. Bxe6 {[%emt 0:00:30]} fxe6 {[%emt 0:00:30]} 27. Rc4 {[%emt 0:00:30]} Rxc4 {[%emt 0:00:30]} 28. Rxc4 {[%emt 0:00:30]} Kf7 {[%emt 0:00:30]} 29. Ra4 {[%emt 0:00:30]} Ra8 {[%emt 0:00:30]} 30. Bxh6 {[%emt 0:00:30]} c5 {[%emt 0:00:30]} 31. Be3 {[%emt 0:00:30]} Nc6 {[%emt 0:00:30]} 32. Bxc5 {[%emt 0:00:30]} Nxe5 {[%emt 0:00:30]} 33. Bd6 {[%emt 0:00:30]} Nd3 {[%emt 0:00:30]} 34. e5 {[%emt 0:00:30]} Rh8 {[%emt 0:00:40]} 35. Rd4 {[%emt 0:03:19]} Nc1 {[%emt 0:00:30]} 36. Rf4+ {[%emt 0:00:30]} Ke8 {[%emt 0:00:30]} 37. Rxg4 {[%emt 0:00:30]} Rxh5 {[%emt 0:00:30]} 38. g3 {[%emt 0:00:30]} Nd3 {[%emt 0:00:30]} 39. Re4 {[%emt 0:00:30]} Rh1+ {[%emt 0:00:51]} 40. Kg2 {[%emt 0:02:16]} Ra1 {[%emt 0:00:02]} 41. Re3 {[%emt 0:00:19]} Rd1 {[%emt 0:01:14]} 42. Kf3 {[%emt 0:00:28]} Nb2 {[%emt 0:01:29]} 43. Ke2 {[%emt 0:00:29]} Rd5 {[%emt 0:00:06]} 44. Rc3 {[%emt 0:00:36]} Rd4 {[%emt 0:02:32]} 45. Rc8+ {[%emt 0:00:30]} Kf7 {[%emt 0:01:40]} 46. Ke3 {[%emt 0:00:31]} Rd5 {[%emt 0:05:12]} 47. Ke4 {[%emt 0:00:46]} Nd1 {[%emt 0:00:30]} 48. f4 {[%emt 0:00:30]} a4 {[%emt 0:03:22]} 49. f5 {[%emt 0:00:14]} Nf2+ {[%emt 0:01:34]} 50. Kf3 {[%emt 0:00:17]} 1-0

[Event "Turkish-ch Youth U13 2024"]
[Site "Belek Antalya"]
[Date "2024.01.26"]
[Round "8"]
[White "Turker, Esat Tuna"]
[Black "Eracar, Ali Arda"]
[Result "1-0"]
[ECO "A57"]
[WhiteElo "1829"]
[BlackElo "1567"]
[Annotator "NA RC COMBH"]
[PlyCount "77"]
[EventDate "2024.01.21"]
[EventType "swiss"]
[EventCountry "TUR"]
[SourceTitle "playchess.com"]
[Source "ChessBase"]
[SourceQuality "1"]
[TimeControl "5400+30"]

1. d4 {[%emt 0:01:00]} Nf6 {[%emt 0:01:00]} 2. c4 {[%emt 0:00:30]} c5 {[%emt 0:00:00]} 3. d5 {[%emt 0:01:30]} b5 {[%emt 0:00:00]} 4. Nf3 {[%emt 0:00:30]} g6 {[%emt 0:00:30]} 5. cxb5 {[%emt 0:05:30]} a6 {[%emt 0:00:30]} 6. b6 {[%emt 0:00:30]} Qxb6 {[%emt 0:01:30]} 7. Nc3 {[%emt 0:00:30]} Bg7 {[%emt 0:00:30]} 8. e4 {[%emt 0:01:30]} d6 {[%emt 0:04:30]} 9. Bd3 {[%emt 0:05:30]} O-O {[%emt 0:02:30]} 10. O-O {[%emt 0:02:30]} Nbd7 {[%emt 0:01:30]} 11. a4 {[%emt 0:01:30]} Qc7 {[%emt 0:03:30]} 12. a5 {[%emt 0:07:30]} Ng4 {[%emt 0:06:30]} 13. Nd2 {[%emt 0:06:30]} Nge5 {[%emt 0:34:30]} 14. Bc2 {[%emt 0:10:30]} g5 {[%emt 0:07:30]} 15. Qe2 {[%emt 0:05:30]} (15. Ra2 $14) 15... h6 {[%emt 0:03:30]} (15... Rb8 $11 {feels stronger.}) 16. Rd1 {[%emt 0:05:30]} (16. h4 $14) 16... c4 {[%emt 0:12:33]} 17. f3 {[%emt 0:14:30]} Rb8 {[%emt 0:02:36]} 18. h4 {[%emt 0:02:30]} Nf6 $11 {[%emt 0:08:33]} (18... Qc5+ $15 19. Kh1 Nd3 20. Nxc4 (20. Bxd3 cxd3 21. Qe1 g4 $17) 20... Nf2+ 21. Kh2 Ne5 (21... gxh4 $2 {perishes.} 22. Be3 $18)) 19. hxg5 {[%emt 0:01:30]} hxg5 {[%emt 0:00:30]} 20. Nf1 {[%emt 0:00:30]} Ng6 {[%emt 0:06:15]} 21. Ne3 {[%emt 0:05:30]} Nh5 {[%emt 0:00:48]} 22. Qxc4 {[%emt 0:06:54]} Qa7 {[%emt 0:00:30]} 23. Na4 {[%emt 0:00:30]} Bd7 {[%emt 0:00:30]} 24. Nb6 {[%emt 0:00:30]} Bb5 {[%emt 0:00:22]} 25. Qb4 {[%emt 0:10:37]} Rxb6 {[%emt 0:00:30]} 26. axb6 {[%emt 0:00:30]} Qxb6 {[%emt 0:00:30]} 27. Ba4 {[%emt 0:00:30]} Rc8 {[%emt 0:00:30]} 28. Bxb5 {[%emt 0:00:30]} axb5 {[%emt 0:00:30]} 29. Qa5 {[%emt 0:00:30]} Qc5 {[%emt 0:00:30]} 30. Qa7 {[%emt 0:00:30]} Qb4 {[%emt 0:00:30]} 31. Qa3 {[%emt 0:00:30]} Qxa3 {[%emt 0:00:30]} 32. Rxa3 {[%emt 0:00:30]} Nhf4 {[%emt 0:00:30]} 33. Kf1 {[%emt 0:00:30]} Ne5 {[%emt 0:00:30]} 34. Rb3 {[%emt 0:00:30]} Ned3 {[%emt 0:00:30]} 35. Bd2 {[%emt 0:00:30]} Nxb2 {[%emt 0:00:30]} 36. Rb1 {[%emt 0:00:30]} Nfd3 {[%emt 0:00:30]} 37. Nf5 {[%emt 0:00:30]} Rb8 {[%emt 0:00:30]} 38. Nxg7 {[%emt 0:00:30]} Kxg7 {[%emt 0:00:30]} 39. Bc3+ {[%emt 0:00:30]} 1-0

[Event "Turkish-ch Youth U13 2024"]
[Site "Belek Antalya"]
[Date "2024.01.26"]
[Round "8"]
[White "Sezgin, Mustafa"]
[Black "Cankurt, Arda"]
[Result "1-0"]
[ECO "E07"]
[WhiteElo "1647"]
[BlackElo "1779"]
[Annotator "NA RC COMBH"]
[PlyCount "65"]
[EventDate "2024.01.21"]
[EventType "swiss"]
[EventCountry "TUR"]
[SourceTitle "playchess.com"]
[Source "ChessBase"]
[SourceQuality "1"]
[TimeControl "5400+30"]

1. d4 {[%emt 0:01:00]} d5 {[%emt 0:01:00]} 2. c4 {[%emt 0:00:30]} c6 {[%emt 0:00:30]} 3. Nf3 {[%emt 0:00:00]} Nf6 {[%emt 0:00:00]} 4. Nc3 {[%emt 0:00:00]} e6 {[%emt 0:00:00]} 5. g3 {[%emt 0:00:30]} dxc4 {[%emt 0:00:30]} 6. a4 {[%emt 0:00:00]} Nbd7 {[%emt 0:00:00]} 7. Bg2 {[%emt 0:01:00]} Be7 {[%emt 0:01:00]} 8. O-O {[%emt 0:00:30]} O-O {[%emt 0:00:30]} 9. e4 {[%emt 0:08:30]} a5 {[%emt 0:09:30]} 10. Qe2 {[%emt 0:05:30]} b6 {[%emt 0:08:30]} 11. Rd1 {[%emt 0:06:30]} Bb7 {[%emt 0:11:30]} 12. Bf4 {[%emt 0:19:30]} Bb4 {[%emt 0:04:30]} 13. Qxc4 {[%emt 0:08:30]} Qe7 {[%emt 0:15:30]} 14. Qd3 {[%emt 0:16:30]} h6 {[%emt 0:01:30]} 15. e5 {[%emt 0:04:30]} Nd5 {[%emt 0:01:30]} 16. Nxd5 {[%emt 0:02:30]} cxd5 {[%emt 0:05:30]} 17. h4 {[%emt 0:01:30]} Ba6 {[%emt 0:07:30]} 18. Qe3 {[%emt 0:00:30]} Rfc8 {[%emt 0:01:30]} 19. g4 {[%emt 0:10:13]} Rc2 {[%emt 0:01:30]} 20. Bf1 {[%emt 0:00:26]} Bxf1 {[%emt 0:01:30]} 21. Kxf1 {[%emt 0:01:14]} Nf8 {[%emt 0:01:30]} 22. h5 {[%emt 0:00:15]} Rac8 {[%emt 0:01:30]} 23. g5 {[%emt 0:00:53]} hxg5 {[%emt 0:03:30]} 24. Bxg5 {[%emt 0:00:23]} Qe8 {[%emt 0:02:30]} 25. h6 {[%emt 0:03:29]} gxh6 {[%emt 0:08:32]} 26. Bf6 {[%emt 0:00:58]} Kh7 {[%emt 0:00:45]} 27. Kg2 {[%emt 0:00:30]} Ng6 {[%emt 0:00:30]} 28. Rh1 {[%emt 0:00:30]} Bf8 {[%emt 0:00:30]} 29. Rh3 {[%emt 0:03:24]} Kg8 {[%emt 0:07:35]} 30. Rah1 {[%emt 0:00:30]} Bg7 {[%emt 0:00:30]} 31. Bxg7 {[%emt 0:00:30]} Kxg7 {[%emt 0:00:30]} 32. Qxh6+ {[%emt 0:00:30]} Kg8 {[%emt 0:00:30]} 33. Qxg6+ {[%emt 0:00:30]} 1-0

[Event "Turkish-ch Youth U13 2024"]
[Site "Belek Antalya"]
[Date "2024.01.26"]
[Round "8"]
[White "Aydogan, Arya"]
[Black "Aydin, Aslinur Berrin"]
[Result "1-0"]
[ECO "C49"]
[WhiteElo "1613"]
[BlackElo "1048"]
[Annotator "NA RC COMBH"]
[PlyCount "56"]
[EventDate "2024.01.21"]
[EventType "swiss"]
[EventCountry "TUR"]
[SourceTitle "playchess.com"]
[Source "ChessBase"]
[SourceQuality "1"]
[TimeControl "5400+30"]

1. e4 {[%emt 0:02:00]} e5 {[%emt 0:01:00]} 2. Nf3 {[%emt 0:00:30]} Nc6 {[%emt 0:00:30]} 3. Nc3 {[%emt 0:00:30]} Nf6 {[%emt 0:00:00]} 4. Bb5 {[%emt 0:00:00]} Bb4 {[%emt 0:00:00]} 5. O-O {[%emt 0:00:00]} d6 {[%emt 0:00:30]} 6. Nd5 {[%emt 0:16:30]} Bc5 {[%emt 0:19:30]} 7. d4 {[%emt 0:16:30]} exd4 {[%emt 0:00:30]} 8. Bg5 {[%emt 0:09:30]} Bd7 {[%emt 0:01:30]} 9. Qd2 {[%emt 0:03:30]} Ne5 {[%emt 0:03:30]} 10. Nxe5 {[%emt 0:08:30]} Bxb5 {[%emt 0:02:30]} 11. Nd3 {[%emt 0:01:30]} c6 {[%emt 0:02:30]} 12. Nxf6+ {[%emt 0:00:30]} gxf6 {[%emt 0:00:00]} 13. Bh4 {[%emt 0:00:30]} Qe7 {[%emt 0:02:00]} 14. Qf4 {[%emt 0:02:30]} Rg8 {[%emt 0:04:30]} 15. Bxf6 {[%emt 0:03:30]} Qe6 {[%emt 0:00:30]} 16. Rfe1 {[%emt 0:03:30]} Bxd3 {[%emt 0:03:30]} 17. cxd3 {[%emt 0:00:30]} Kd7 {[%emt 0:00:30]} 18. e5 {[%emt 0:03:30]} Rae8 {[%emt 0:01:30]} 19. Kf1 {[%emt 0:03:30]} Rg6 {[%emt 0:09:30]} 20. h3 {[%emt 0:04:22]} h5 {[%emt 0:11:30]} 21. h4 {[%emt 0:06:10]} Bb4 {[%emt 0:15:30]} 22. Re2 {[%emt 0:05:24]} Rg4 {[%emt 0:00:30]} 23. Qf3 {[%emt 0:02:21]} Rg6 {[%emt 0:10:24]} 24. Re4 {[%emt 0:04:54]} c5 {[%emt 0:05:58]} 25. Rxd4 {[%emt 0:01:09]} d5 {[%emt 0:04:16]} 26. Rxd5+ {[%emt 0:01:00]} Kc7 {[%emt 0:00:46]} 27. Rd6 {[%emt 0:00:31]} Qg4 {[%emt 0:00:34]} 28. Qd5 {[%emt 0:00:39]} Re6 {[%emt 0:01:02]} 1-0

[Event "Turkish-ch Youth U13 2024"]
[Site "Belek Antalya"]
[Date "2024.01.26"]
[Round "8"]
[White "Sahin, Cagla Yudum"]
[Black "Kalyoncu, Beren"]
[Result "1-0"]
[ECO "C03"]
[WhiteElo "1559"]
[BlackElo "1578"]
[Annotator "NA RC COMBH"]
[PlyCount "107"]
[EventDate "2024.01.21"]
[EventType "swiss"]
[EventCountry "TUR"]
[SourceTitle "playchess.com"]
[Source "ChessBase"]
[SourceQuality "1"]
[TimeControl "5400+30"]

1. e4 {[%emt 0:01:00]} e6 {[%emt 0:03:00]} 2. d4 {[%emt 0:00:30]} d5 {[%emt 0:00:30]} 3. Nd2 {[%emt 0:00:00]} Be7 {[%emt 0:00:00]} 4. e5 {[%emt 0:00:00]} c5 {[%emt 0:01:00]} 5. c3 {[%emt 0:00:30]} cxd4 {[%emt 0:02:30]} 6. cxd4 {[%emt 0:00:30]} Nc6 {[%emt 0:00:30]} 7. Ngf3 {[%emt 0:02:30]} Qb6 {[%emt 0:01:30]} 8. Nb3 {[%emt 0:01:30]} a5 {[%emt 0:02:30]} 9. Qd3 {[%emt 0:27:30]} a4 {[%emt 0:03:30]} 10. Nbd2 {[%emt 0:10:30]} Bd7 {[%emt 0:05:30]} 11. Nb1 {[%emt 0:00:00]} Nb4 {[%emt 0:13:30]} 12. Qd1 {[%emt 0:16:00]} Nh6 {[%emt 0:19:30]} 13. a3 {[%emt 0:04:30]} Na6 {[%emt 0:06:30]} 14. Nc3 {[%emt 0:03:30]} Nc7 {[%emt 0:00:30]} 15. Bd3 {[%emt 0:02:30]} Nf5 {[%emt 0:01:30]} 16. Bc2 {[%emt 0:01:30]} Qa6 {[%emt 0:00:30]} 17. Bd3 {[%emt 0:01:30]} b5 {[%emt 0:02:30]} 18. O-O {[%emt 0:01:30]} h5 19. Re1 {[%emt 0:03:30]} Qb6 {[%emt 0:06:00]} 20. Bc2 {[%emt 0:01:30]} O-O {[%emt 0:02:30]} 21. Bf4 {[%emt 0:04:06]} Qb7 {[%emt 0:05:30]} 22. Bg5 {[%emt 0:05:33]} f6 {[%emt 0:02:30]} 23. exf6 {[%emt 0:02:16]} Bxf6 {[%emt 0:00:30]} 24. Bxf6 {[%emt 0:01:21]} Rxf6 {[%emt 0:00:30]} 25. Ne5 {[%emt 0:00:00]} Be8 {[%emt 0:00:30]} 26. Ne2 {[%emt 0:02:18]} Qb6 {[%emt 0:06:23]} 27. Qd2 {[%emt 0:00:40]} Na6 {[%emt 0:02:08]} 28. b3 {[%emt 0:02:21]} axb3 {[%emt 0:02:00]} 29. Bxb3 {[%emt 0:00:03]} Nb8 {[%emt 0:00:58]} 30. Rec1 {[%emt 0:03:08]} Nc6 {[%emt 0:02:05]} 31. Nxc6 {[%emt 0:00:30]} Bxc6 {[%emt 0:00:30]} 32. Qb4 {[%emt 0:00:26]} Raf8 {[%emt 0:03:04]} 33. Qc5 {[%emt 0:01:46]} Qxc5 {[%emt 0:00:55]} 34. Rxc5 {[%emt 0:00:18]} Be8 {[%emt 0:01:44]} 35. f3 {[%emt 0:01:06]} Ne3 {[%emt 0:02:28]} 36. Nc3 {[%emt 0:00:37]} Rg6 {[%emt 0:00:00]} 37. Kf2 {[%emt 0:01:09]} Ng4+ {[%emt 0:00:22]} 38. Kg1 {[%emt 0:00:30]} Ne3 {[%emt 0:03:11]} 39. Kf2 {[%emt 0:00:00]} Ng4+ {[%emt 0:00:36]} 40. Kg1 {[%emt 0:00:15]} Nh6 {[%emt 0:00:27]} 41. Bc2 {[%emt 0:00:43]} Nf5 {[%emt 0:00:33]} 42. Bxf5 {[%emt 0:00:42]} Rxf5 {[%emt 0:00:24]} 43. Kf2 {[%emt 0:00:13]} Rfg5 {[%emt 0:00:39]} 44. g3 {[%emt 0:00:12]} h4 {[%emt 0:00:52]} 45. g4 {[%emt 0:00:13]} h3 {[%emt 0:00:06]} 46. Nxb5 {[%emt 0:00:26]} Kh7 {[%emt 0:00:32]} 47. Nd6 {[%emt 0:00:28]} Ba4 {[%emt 0:00:31]} 48. Nf7 {[%emt 0:00:15]} Kg8 {[%emt 0:00:41]} 49. Nxg5 {[%emt 0:00:30]} Rxg5 {[%emt 0:00:00]} 50. Rc7 {[%emt 0:00:00]} Kh7 {[%emt 0:00:11]} 51. Kg3 {[%emt 0:00:14]} Rg6 {[%emt 0:00:24]} 52. Kxh3 {[%emt 0:00:23]} Rh6+ {[%emt 0:01:30]} 53. Kg3 {[%emt 0:00:11]} Kg6 {[%emt 0:00:00]} 54. Rc8 {[%emt 0:00:20]} 1-0